bitfinex/quotes_BTCUSD_20250316
["timestamp","ask_amount","ask_price","bid_price","bid_amount"]
[1742119200232,4.151e-05,84080.0,84079.0,0.0248825]
[1742119200438,4.151e-05,84080.0,84079.0,0.1048825]
[1742119200694,4.151e-05,84080.0,84079.0,0.09508224]
[1742119200903,4.151e-05,84080.0,84079.0,0.015893]
[1742119201074,4.151e-05,84080.0,84079.0,0.004]
[1742119201275,4.151e-05,84080.0,84079.0,0.01508223]
[1742119202215,4.151e-05,84080.0,84079.0,0.013893]
[1742119202455,4.151e-05,84080.0,84079.0,0.011893]
[1742119202655,4.151e-05,84080.0,84079.0,0.015893]
[1742119202926,4.151e-05,84080.0,84079.0,0.020893]
[1742119205720,4.151e-05,84080.0,84079.0,0.08452295]
[1742119206477,4.151e-05,84080.0,84079.0,0.22056295]
[1742119206633,4.151e-05,84080.0,84079.0,0.30046295]
[1742119206878,4.151e-05,84080.0,84079.0,0.59927385]
[1742119207062,4.151e-05,84080.0,84079.0,0.71884888]
[1742119208705,4.151e-05,84080.0,84079.0,2.21884888]
[1742119210152,4.151e-05,84080.0,84079.0,2.09927385]
[1742119210582,4.151e-05,84080.0,84079.0,0.47147385]
[1742119210849,4.151e-05,84080.0,84079.0,0.456933]
[1742119211086,4.151e-05,84080.0,84079.0,0.320893]
[1742119212533,4.151e-05,84080.0,84079.0,0.34489993]
[1742119213155,4.151e-05,84080.0,84079.0,0.34506923]
[1742119213882,4.151e-05,84080.0,84079.0,0.42176923]
[1742119215505,4.151e-05,84080.0,84079.0,0.34506923]
[1742119215976,4.151e-05,84080.0,84079.0,0.04506923]
[1742119216181,4.151e-05,84080.0,84079.0,0.0210623]
[1742119216385,4.151e-05,84080.0,84079.0,0.2470403]
[1742119216586,4.151e-05,84080.0,84079.0,0.2589333]
[1742119221930,4.151e-05,84080.0,84079.0,1.7589333]
[1742119225632,4.151e-05,84080.0,84079.0,0.2589333]
[1742119231242,4.151e-05,84080.0,84079.0,0.0091693]
[1742119231427,0.01193451,84080.0,84079.0,0.0091693]
[1742119231719,4.151e-05,84080.0,84079.0,0.0091693]
[1742119232493,4.151e-05,84080.0,84079.0,0.0051693]
[1742119233135,4.151e-05,84080.0,84079.0,0.2430403]
[1742119233283,4.151e-05,84080.0,84079.0,0.0001693]
[1742119233491,4.151e-05,84080.0,84079.0,0.0051693]
[1742119235291,0.0067071,84080.0,84079.0,0.0051693]
[1742119236268,0.0067071,84080.0,84079.0,0.2430403]
[1742119236671,0.02534878,84080.0,84079.0,0.2549333]
[1742119239273,0.0067071,84080.0,84079.0,0.2549333]
[1742119247133,0.0067071,84080.0,84079.0,0.2430403]
[1742119247606,0.0067071,84080.0,84079.0,0.0051693]
[1742119249752,0.2564681,84080.0,84079.0,0.0051693]
[1742119251963,0.3348681,84080.0,84079.0,0.0051693]
[1742119252167,1.09866436,84080.0,84079.0,0.0051693]
[1742119253009,1.09866436,84080.0,84079.0,0.0021693]
[1742119253212,1.09866436,84080.0,84079.0,0.0001693]
[1742119253587,1.10066436,84080.0,84079.0,0.0001693]
[1742119253785,1.10566436,84080.0,84079.0,3e-07]
[1742119254227,1.10766436,84080.0,84079.0,3e-07]
[1742119254416,0.675097,84068.0,84055.0,0.0001693]
[1742119254615,0.811057,84068.0,84055.0,0.0001693]
[1742119254815,0.81828381,84068.0,84055.0,0.0001693]
[1742119255347,1.24017977,84068.0,84067.0,3e-07]
[1742119255546,0.442195,84067.0,84066.0,6e-07]
[1742119255948,0.44942611,84067.0,84066.0,6e-07]
[1742119256858,0.45442611,84067.0,84066.0,6e-07]
[1742119257087,0.50442611,84067.0,84066.0,6e-07]
[1742119257371,0.63738611,84067.0,84066.0,6e-07]
[1742119257579,0.64138611,84067.0,84066.0,6e-07]
[1742119257721,0.59138611,84067.0,84066.0,6e-07]
[1742119257929,0.67946009,84067.0,84066.0,6e-07]
[1742119258311,0.59138611,84067.0,84066.0,6e-07]
[1742119258713,0.59438611,84067.0,84066.0,6e-07]
[1742119259992,0.676632,84056.0,84055.0,0.0001693]
[1742119260535,0.68380214,84056.0,84055.0,0.0001693]
[1742119260681,0.70245331,84056.0,84055.0,0.0001693]
[1742119261288,0.70345331,84056.0,84055.0,0.0001693]
[1742119262742,0.70245331,84056.0,84055.0,0.0001693]
[1742119262940,0.70445331,84056.0,84055.0,0.0001693]
[1742119263141,0.70745331,84056.0,84055.0,0.0001693]
[1742119265428,0.68880214,84056.0,84055.0,0.0001693]
[1742119265876,1.1056975,84056.0,84055.0,0.0001693]
[1742119268027,0.8677615,84056.0,84055.0,0.0001693]
[1742119268240,0.8558655,84056.0,84055.0,0.0001693]
[1742119268441,0.8677615,84056.0,84055.0,0.0001693]
[1742119268636,1.02241142,84056.0,84055.0,0.0001693]
[1742119268807,1.02041142,84056.0,84055.0,0.0001693]
[1742119269020,1.02141142,84056.0,84055.0,0.0001693]
[1742119269410,1.02041142,84056.0,84055.0,0.0001693]
[1742119269611,0.9987615,84056.0,84055.0,0.0001693]
[1742119269795,1.0007615,84056.0,84055.0,0.0001693]
[1742119270498,0.9987615,84056.0,84055.0,0.0001693]
[1742119270699,0.9997615,84056.0,84055.0,0.0001693]
[1742119271192,0.8729615,84056.0,84055.0,0.0001693]
[1742119271569,0.7369615,84056.0,84055.0,0.0001693]
[1742119271748,0.8729615,84056.0,84055.0,0.0001693]
[1742119272674,1.1108975,84056.0,84055.0,0.0001693]
[1742119274275,1.12954766,84056.0,84055.0,0.0001693]
[1742119278155,1.1108975,84056.0,84055.0,0.0001693]
[1742119279137,1.1919975,84056.0,84055.0,0.0001693]
[1742119281377,1.21064802,84056.0,84055.0,0.0001693]
[1742119282548,1.2380975,84056.0,84055.0,0.0001693]
[1742119283172,1.2370975,84056.0,84055.0,0.0001693]
[1742119283756,1.2400975,84056.0,84055.0,0.0001693]
[1742119284189,1.2400575,84056.0,84055.0,0.0001693]
[1742119285307,1.2470575,84056.0,84055.0,0.0001693]
[1742119285661,1.26170895,84056.0,84055.0,0.0001693]
[1742119286110,1.26570895,84056.0,84055.0,0.0001693]
[1742119287600,1.18460895,84056.0,84055.0,0.0001693]
[1742119288026,1.13850895,84056.0,84055.0,0.0001693]
[1742119288401,1.14350895,84056.0,84055.0,0.0001693]
[1742119288601,1.22240895,84056.0,84055.0,3e-07]
[1742119289225,1.26770895,84056.0,84055.0,3e-07]
[1742119289576,1.26170895,84056.0,84055.0,3e-07]
[1742119289726,1.37728398,84056.0,84055.0,3e-07]
[1742119289936,1.38228398,84056.0,84055.0,3e-07]
[1742119290101,1.38728398,84056.0,84055.0,3e-07]
[1742119290301,0.667184,84039.0,84038.0,0.0001695]
[1742119290501,1.32367583,84039.0,84038.0,0.0001695]
[1742119290712,1.31867583,84039.0,84038.0,0.0001695]
[1742119291249,1.33057483,84039.0,84038.0,0.0001695]
[1742119291706,1.33057483,84039.0,84038.0,0.00021396]
[1742119292065,1.33357483,84039.0,84038.0,0.00021396]
[1742119292428,1.23685643,84039.0,84038.0,0.00021396]
[1742119292815,1.24085643,84039.0,84038.0,0.00021396]
[1742119295000,1.25951196,84039.0,84038.0,0.00021396]
[1742119297169,1.25955196,84039.0,84038.0,0.00021396]
[1742119297569,1.26838129,84039.0,84038.0,0.00021396]
[1742119298169,1.13238129,84039.0,84038.0,0.00021396]
[1742119298542,1.26838129,84039.0,84038.0,0.00021396]
[1742119298777,1.24972576,84039.0,84038.0,0.00021396]
[1742119301859,1.26838042,84039.0,84038.0,0.00021396]
[1742119303925,1.13238042,84039.0,84038.0,0.00021396]
[1742119304128,1.26838042,84039.0,84038.0,0.00021396]
[1742119307293,1.27338042,84039.0,84038.0,0.00021396]
[1742119309718,1.26838042,84039.0,84038.0,0.00021396]
[1742119314716,1.26834042,84039.0,84038.0,0.00021396]
[1742119315174,1.26816041,84039.0,84038.0,0.00021396]
[1742119331673,1.26849921,84039.0,84038.0,0.00021396]
[1742119340251,1.13253921,84039.0,84038.0,0.00021396]
[1742119340426,1.14425921,84039.0,84038.0,0.00021396]
[1742119342906,1.00833921,84039.0,84038.0,0.00021396]
[1742119343223,1.14425921,84039.0,84038.0,0.00021396]
[1742119343826,1.22375921,84039.0,84038.0,0.00021396]
[1742119344167,1.08783921,84039.0,84038.0,0.00021396]
[1742119344370,1.22375921,84039.0,84038.0,0.00021396]
[1742119344710,1.14425921,84039.0,84038.0,0.00021396]
[1742119346405,0.238042,84019.0,84017.0,0.02685256]
[1742119346607,0.00571613,84018.0,84017.0,0.02689702]
[1742119347015,0.249942,84020.0,84017.0,0.02689702]
[1742119347235,0.01865552,84018.0,84017.0,0.02689702]
[1742119347886,0.01865552,84018.0,84017.0,0.03879902]
[1742119348484,0.01865552,84018.0,84017.0,0.02689702]
[1742119348660,0.02437054,84018.0,84017.0,0.02689702]
[1742119349201,0.02437054,84018.0,84017.0,0.03879902]
[1742119349417,0.01865552,84018.0,84017.0,0.02689702]
[1742119349638,0.02436323,84018.0,84017.0,0.09759702]
[1742119351623,0.02436323,84018.0,84017.0,0.10949902]
[1742119353621,0.01865552,84018.0,84017.0,0.10949902]
[1742119354579,0.01865552,84018.0,84017.0,0.10966842]
[1742119354788,0.01899432,84018.0,84017.0,0.10966842]
[1742119357736,0.01899432,84018.0,84017.0,0.11085855]
[1742119358039,0.0003388,84018.0,84017.0,0.11085855]
[1742119359185,0.0003388,84018.0,84017.0,0.12266721]
[1742119360467,0.0003388,84018.0,84017.0,0.13601793]
[1742119360809,0.0003388,84018.0,84017.0,0.13720798]
[1742119361020,0.0003388,84018.0,84017.0,1.63720798]
[1742119361231,0.0003388,84018.0,84017.0,1.65835894]
[1742119361870,0.0013388,84018.0,84017.0,1.95835894]
[1742119362497,0.0023388,84018.0,84017.0,1.95835894]
[1742119362702,0.0023388,84018.0,84017.0,2.09423894]
[1742119363199,0.0033388,84018.0,84017.0,2.09423894]
[1742119363628,8e-07,84018.0,84017.0,2.23823188]
[1742119364691,0.0003388,84039.0,84038.0,0.011899]
[1742119364854,0.0003388,84039.0,84038.0,0.33631663]
[1742119365053,0.0003388,84039.0,84038.0,0.33512685]
[1742119365574,0.0003388,84039.0,84038.0,1.83312685]
[1742119365774,0.0003388,84039.0,84038.0,1.87832685]
[1742119366382,0.0003388,84039.0,84038.0,1.88132685]
[1742119367021,0.0003388,84039.0,84038.0,0.38132685]
[1742119367801,0.0003388,84039.0,84038.0,0.26542685]
[1742119375167,0.0003388,84039.0,84038.0,0.33612685]
[1742119375953,0.0003388,84039.0,84038.0,0.26342685]
[1742119376155,0.0003388,84039.0,84038.0,0.26242685]
[1742119376457,0.0003388,84039.0,84038.0,0.26642685]
[1742119376633,0.0003388,84039.0,84038.0,0.27142685]
[1742119376831,0.0003388,84039.0,84038.0,0.26642685]
[1742119377565,0.0003388,84039.0,84038.0,0.26242685]
[1742119377885,0.0003388,84039.0,84038.0,0.26742685]
[1742119378166,0.0003388,84039.0,84038.0,0.38682685]
[1742119378304,0.0003388,84039.0,84038.0,0.39082685]
[1742119378526,0.0003388,84039.0,84038.0,0.39099625]
[1742119379137,0.0003388,84039.0,84038.0,0.38199625]
[1742119379540,0.0003388,84039.0,84038.0,0.39199625]
[1742119381472,0.0003388,84039.0,84038.0,0.27259625]
[1742119381894,0.0003388,84039.0,84038.0,0.2580554]
[1742119383598,0.0003388,84039.0,84038.0,0.27259625]
[1742119388424,0.0003388,84039.0,84038.0,0.80807128]
[1742119388425,8e-07,84039.0,84038.0,0.80807128]
[1742119388648,8e-07,84039.0,84038.0,2.30807128]
[1742119388950,6e-07,84046.0,84045.0,0.38030585]
[1742119389162,0.0009997,84059.0,84058.0,0.249826]
[1742119389368,0.55252586,84082.0,84065.0,0.249806]
[1742119389369,0.0826,84080.0,84065.0,0.249806]
[1742119389578,0.0826,84080.0,84065.0,0.26434685]
[1742119390253,0.094493,84080.0,84065.0,0.26434685]
[1742119390413,0.01864546,84073.0,84065.0,0.26434685]
[1742119390793,0.01864546,84073.0,84065.0,0.26834685]
[1742119392037,0.01864546,84073.0,84065.0,1.76834685]
[1742119392212,0.01864546,84073.0,84065.0,0.27234685]
[1742119394076,0.0494,84067.0,84065.0,0.008]
[1742119394454,0.0494,84067.0,84065.0,0.019895]
[1742119395035,0.0811,84068.0,84065.0,0.019895]
[1742119395754,0.01864546,84073.0,84065.0,0.019895]
[1742119396362,0.01864546,84073.0,84065.0,0.02108443]
[1742119396716,0.01864546,84073.0,84065.0,0.03562528]
[1742119396921,0.01864546,84073.0,84065.0,0.03443585]
[1742119397500,0.0811,84080.0,84065.0,0.03443585]
[1742119397703,0.0811,84080.0,84065.0,0.03562517]
[1742119398676,0.0811,84080.0,84065.0,1.53562517]
[1742119398878,0.0811,84080.0,84065.0,1.53443585]
[1742119400998,0.09974445,84080.0,84065.0,1.53443585]
[1742119402043,0.41771926,84082.0,84065.0,1.60513585]
[1742119402251,0.41771926,84082.0,84065.0,1.74089585]
[1742119403191,0.41771926,84082.0,84065.0,1.73689585]
[1742119403395,0.41771926,84082.0,84065.0,1.73289585]
[1742119403594,0.41771926,84082.0,84065.0,1.73889585]
[1742119404427,0.41771926,84082.0,84065.0,1.74489585]
[1742119404763,0.41771926,84082.0,84065.0,1.73889585]
[1742119404962,0.41771926,84082.0,84065.0,1.74489585]
[1742119405184,8e-07,84066.0,84065.0,1.88840004]
[1742119406345,8e-07,84066.0,84065.0,1.87640004]
[1742119406622,8e-07,84066.0,84065.0,1.88840004]
[1742119407127,8e-07,84066.0,84065.0,1.88240004]
[1742119407513,8e-07,84066.0,84065.0,1.88840004]
[1742119409986,8e-07,84066.0,84065.0,1.81770004]
[1742119412185,8e-07,84066.0,84065.0,2.57298004]
[1742119416407,8e-07,84066.0,84065.0,2.87298004]
[1742119419237,0.0009903,84082.0,84081.0,0.249758]
[1742119419440,0.00140556,84082.0,84081.0,0.51959388]
[1742119419654,0.00041526,84082.0,84081.0,0.51959388]
[1742119419865,0.00041526,84082.0,84081.0,2.04188151]
[1742119420070,0.00041526,84082.0,84081.0,2.34188151]
[1742119420342,2.6e-07,84082.0,84081.0,2.34688151]
[1742119420758,2.6e-07,84082.0,84081.0,2.34188151]
[1742119420951,2.6e-07,84082.0,84081.0,2.34788151]
[1742119421154,2.6e-07,84082.0,84081.0,2.33159388]
[1742119422272,2.6e-07,84082.0,84081.0,2.32559388]
[1742119423057,2.6e-07,84082.0,84081.0,2.33159388]
[1742119423464,2.6e-07,84082.0,84081.0,2.35579315]
[1742119425550,2.6e-07,84082.0,84081.0,2.22011315]
[1742119425754,2.6e-07,84082.0,84081.0,2.35579315]
[1742119426098,2.6e-07,84082.0,84081.0,2.47599315]
[1742119426294,2.6e-07,84082.0,84081.0,2.35579315]
[1742119426819,0.00033886,84082.0,84081.0,2.35579315]
[1742119427119,0.00033886,84082.0,84081.0,2.47599315]
[1742119427266,8.6e-07,84082.0,84081.0,2.47599315]
[1742119428615,8.6e-07,84082.0,84081.0,2.53099315]
[1742119428838,4.6e-07,84093.0,84092.0,0.56426585]
[1742119429031,0.00010418,84093.0,84092.0,0.75454088]
[1742119429248,0.00010418,84093.0,84092.0,0.68384088]
[1742119429647,0.00010418,84093.0,84092.0,2.18384088]
[1742119430281,1.8e-07,84093.0,84092.0,2.18984088]
[1742119430482,7.8e-07,84094.0,84093.0,0.02643185]
[1742119430727,7.8e-07,84094.0,84093.0,0.14719561]
[1742119431026,7.8e-07,84094.0,84093.0,0.44719561]
[1742119431254,7.8e-07,84094.0,84093.0,0.57170688]
[1742119431431,7.8e-07,84094.0,84093.0,2.07170688]
[1742119431886,7.8e-07,84094.0,84093.0,2.07770688]
[1742119432578,1e-08,84103.0,84102.0,0.56923685]
[1742119432778,1e-08,84103.0,84102.0,1.98909188]
[1742119434168,1e-08,84103.0,84102.0,2.00127508]
[1742119434748,1e-08,84103.0,84102.0,2.00727508]
[1742119435229,1e-08,84103.0,84102.0,2.03072561]
[1742119436016,1e-08,84103.0,84102.0,2.03672561]
[1742119436542,1e-08,84103.0,84102.0,2.04571699]
[1742119437152,1e-08,84103.0,84102.0,2.04567699]
[1742119437531,1e-08,84103.0,84102.0,2.05067699]
[1742119438515,1e-08,84103.0,84102.0,3.54567699]
[1742119440576,1e-08,84103.0,84102.0,3.41003699]
[1742119440782,1e-08,84103.0,84102.0,3.54567699]
[1742119441753,1e-08,84103.0,84102.0,3.13107699]
[1742119443357,0.07970001,84103.0,84102.0,2.73823373]
[1742119443558,0.14139001,84103.0,84102.0,2.267]
[1742119443905,0.12950001,84103.0,84102.0,2.267]
[1742119444124,0.12950001,84103.0,84102.0,2.27554085]
[1742119444334,0.12950001,84103.0,84102.0,2.28743085]
[1742119444891,0.12950001,84103.0,84102.0,2.28143085]
[1742119445095,0.12950001,84103.0,84102.0,2.28743085]
[1742119445502,0.12950001,84103.0,84102.0,2.29938112]
[1742119445716,0.12950001,84103.0,84102.0,2.30438112]
[1742119445927,0.12950001,84103.0,84102.0,2.29838112]
[1742119446229,0.12950001,84103.0,84102.0,2.30438112]
[1742119446473,0.12950001,84103.0,84102.0,2.29243085]
[1742119447060,0.12950001,84103.0,84102.0,2.28054085]
[1742119447252,0.12950001,84103.0,84102.0,2.29243085]
[1742119451090,0.12950001,84103.0,84102.0,2.29276925]
[1742119453181,0.14139001,84103.0,84102.0,0.7663384]
[1742119453685,0.14874322,84103.0,84102.0,0.7663384]
[1742119453888,0.14874322,84103.0,84102.0,0.78087925]
[1742119454720,0.14874322,84103.0,84102.0,0.77487925]
[1742119454923,0.13685322,84103.0,84102.0,0.77487925]
[1742119455131,0.12950001,84103.0,84102.0,0.77487925]
[1742119455307,0.12950001,84103.0,84102.0,0.77887925]
[1742119456224,0.12950001,84103.0,84102.0,0.79076925]
[1742119456984,0.13686933,84103.0,84102.0,0.79076925]
[1742119457183,0.13686933,84103.0,84102.0,2.29076925]
[1742119457611,0.12950001,84103.0,84102.0,2.29076925]
[1742119464733,0.12950001,84103.0,84102.0,1.53576925]
[1742119466421,0.07970001,84103.0,84102.0,1.53576925]
[1742119467724,1e-08,84103.0,84102.0,1.53576925]
[1742119468041,1e-08,84103.0,84102.0,1.52676925]
[1742119468464,1e-08,84103.0,84102.0,1.53676925]
[1742119474598,1e-08,84103.0,84102.0,1.65634428]
[1742119475745,1e-08,84103.0,84102.0,1.65134428]
[1742119475944,1e-08,84103.0,84102.0,1.65734428]
[1742119476262,1e-08,84103.0,84102.0,1.65234428]
[1742119476463,1e-08,84103.0,84102.0,1.65834428]
[1742119485912,0.07900001,84103.0,84102.0,1.65834428]
[1742119486418,0.07900001,84103.0,84102.0,1.53876925]
[1742119490595,0.08492201,84103.0,84102.0,1.53876925]
[1742119490826,0.07900001,84103.0,84102.0,1.53876925]
[1742119491716,0.07900001,84103.0,84102.0,1.53276925]
[1742119492755,0.07900001,84103.0,84102.0,1.53776925]
[1742119494303,0.07900001,84103.0,84102.0,1.52587925]
[1742119494713,0.07900001,84103.0,84102.0,1.53776925]
[1742119497154,1e-08,84103.0,84102.0,1.65734428]
[1742119498528,1e-08,84103.0,84102.0,1.65134428]
[1742119498733,1e-08,84103.0,84102.0,1.64634428]
[1742119499072,1e-08,84103.0,84102.0,1.65234428]
[1742119500107,1e-08,84103.0,84102.0,1.65834428]
[1742119500479,1e-08,84103.0,84102.0,1.65234428]
[1742119500680,1e-08,84103.0,84102.0,1.65834428]
[1742119501181,1e-08,84103.0,84102.0,1.5242284]
[1742119501383,1e-08,84103.0,84102.0,0.0242284]
[1742119501581,1e-08,84103.0,84102.0,0.03876925]
[1742119501715,1e-08,84103.0,84102.0,0.0242284]
[1742119501922,1e-08,84103.0,84102.0,1.53876925]
[1742119503292,0.08170001,84103.0,84102.0,1.53876925]
[1742119504101,0.08170001,84103.0,84102.0,1.53276925]
[1742119504477,0.08170001,84103.0,84102.0,1.52387925]
[1742119504682,0.08170001,84103.0,84102.0,1.53576925]
[1742119504927,0.08170001,84103.0,84102.0,1.53276925]
[1742119505315,0.08170001,84103.0,84102.0,1.53676925]
[1742119506001,0.08170001,84103.0,84102.0,1.53076925]
[1742119506402,0.0873441,84103.0,84102.0,1.53076925]
[1742119506601,0.0873441,84103.0,84102.0,1.53376925]
[1742119507412,0.0873441,84103.0,84102.0,1.52187925]
[1742119508244,0.09359001,84103.0,84102.0,1.52187925]
[1742119508455,0.09918412,84103.0,84102.0,1.52187925]
[1742119510409,0.08729412,84103.0,84102.0,1.52187925]
[1742119511404,0.08170001,84103.0,84102.0,0.27157525]
[1742119512011,0.08170001,84103.0,84102.0,1.77157525]
[1742119514182,1e-08,84103.0,84102.0,1.77157525]
[1742119515329,1e-08,84103.0,84102.0,1.76857525]
[1742119515762,1e-08,84103.0,84102.0,1.77257525]
[1742119515990,0.13000001,84103.0,84102.0,0.27257525]
[1742119516776,0.13000001,84103.0,84102.0,0.26857525]
[1742119516971,0.13000001,84103.0,84102.0,0.27357525]
[1742119517169,0.13000001,84103.0,84102.0,0.26957525]
[1742119517630,0.13000001,84103.0,84102.0,0.26457525]
[1742119518061,0.13000001,84103.0,84102.0,0.27057525]
[1742119518598,0.13000001,84103.0,84102.0,0.27557525]
[1742119518805,0.13000001,84103.0,84102.0,1.77557525]
[1742119520260,0.08300001,84103.0,84102.0,1.77557525]
[1742119522341,0.08300001,84103.0,84102.0,0.27557525]
[1742119522954,0.08300001,84103.0,84102.0,1.77557525]
[1742119525977,0.08300001,84103.0,84102.0,0.27557525]
[1742119526378,0.08300001,84103.0,84102.0,1.77557525]
[1742119529562,0.08300001,84103.0,84102.0,0.27557525]
[1742119530071,0.08300001,84103.0,84102.0,1.77557525]
[1742119530930,0.08300001,84103.0,84102.0,0.0113384]
[1742119531135,0.09489001,84103.0,84102.0,0.0113384]
[1742119531560,0.37869301,84103.0,84102.0,0.0113384]
[1742119531762,0.12900001,84103.0,84102.0,0.0113384]
[1742119531959,0.13768489,84103.0,84102.0,0.0113384]
[1742119532185,0.13768489,84103.0,84102.0,0.0053384]
[1742119532380,0.13768489,84103.0,84102.0,0.0003384]
[1742119532601,0.15632182,84103.0,84102.0,0.0003384]
[1742119532762,0.15632182,84103.0,84102.0,0.0083384]
[1742119533267,0.15632182,84103.0,84102.0,0.0073384]
[1742119533712,0.13768489,84103.0,84102.0,0.0103384]
[1742119535042,0.14957489,84103.0,84102.0,0.0103384]
[1742119536707,0.16821167,84103.0,84102.0,0.0103384]
[1742119537774,0.14957489,84103.0,84102.0,0.0103384]
[1742119540249,0.13768489,84103.0,84102.0,0.0103384]
[1742119541230,0.15632154,84103.0,84102.0,0.0103384]
[1742119541914,0.15632154,84103.0,84102.0,0.0222284]
[1742119542091,0.13768489,84103.0,84102.0,0.0222284]
[1742119543690,0.12900001,84103.0,84102.0,0.0222284]
[1742119545166,0.13767972,84103.0,84102.0,0.0222284]
[1742119546937,0.13767972,84103.0,84102.0,0.03676925]
[1742119547277,0.12900001,84103.0,84102.0,0.03676925]
[1742119547879,1e-08,84103.0,84102.0,0.03676925]
[1742119568749,1e-08,84103.0,84102.0,0.0222284]
[1742119580468,0.00868967,84103.0,84102.0,0.0222284]
[1742119580676,1e-08,84103.0,84102.0,0.0222284]
[1742119580882,0.00868967,84103.0,84102.0,0.0222284]
[1742119581086,0.08010001,84103.0,84102.0,0.0103384]
[1742119581491,0.37900188,84103.0,84102.0,0.0103384]
[1742119581698,0.67799301,84103.0,84102.0,0.0103384]
[1742119581910,0.68665663,84103.0,84102.0,0.0103384]
[1742119582108,1.10338249,84103.0,84102.0,0.0103384]
[1742119582631,1.11513736,84103.0,84102.0,0.0073384]
[1742119582828,1.11513736,84103.0,84102.0,0.0003384]
[1742119584778,1.13377795,84103.0,84102.0,0.0003384]
[1742119588482,1.11513736,84103.0,84102.0,0.0003384]
[1742119590258,0.249756,84082.0,84076.0,0.20292166]
[1742119590478,0.00100887,84081.0,84076.0,0.20302538]
[1742119590918,0.249761,84080.0,84076.0,0.00010372]
[1742119591066,0.00100887,84079.0,84076.0,0.00010372]
[1742119591269,0.00949419,84079.0,84076.0,0.00010372]
[1742119591645,0.00949419,84079.0,84076.0,0.00310372]
[1742119592068,0.00949419,84079.0,84076.0,0.00010372]
[1742119592345,0.00949419,84079.0,84076.0,0.00410372]
[1742119592703,0.00949419,84079.0,84076.0,0.00710372]
[1742119593015,0.00949419,84079.0,84076.0,0.00410372]
[1742119593198,0.02813562,84079.0,84076.0,0.00410372]
[1742119593524,0.237874,84078.0,84076.0,0.00410372]
[1742119593981,0.00847899,84077.0,84076.0,0.00310372]
[1742119594476,0.0196503,84079.0,84076.0,0.00710372]
[1742119594971,0.00849298,84078.0,84076.0,0.00310372]
[1742119595149,0.0315433,84079.0,84076.0,0.00310372]
[1742119595355,0.00849298,84078.0,84076.0,0.00410372]
[1742119595555,0.237877,84077.0,84076.0,0.00410372]
[1742119595754,0.011893,84078.0,84076.0,0.00710372]
[1742119595938,0.0315433,84079.0,84076.0,0.00710372]
[1742119596139,0.011893,84077.0,84076.0,0.00710372]
[1742119596477,0.02139274,84077.0,84076.0,0.00410372]
[1742119596692,0.5783172,84077.0,84076.0,0.00410372]
[1742119596893,0.57730833,84077.0,84076.0,0.00410372]
[1742119597086,0.57730833,84077.0,84076.0,0.00810372]
[1742119597287,0.57730833,84077.0,84076.0,0.01110372]
[1742119597512,0.57730833,84077.0,84076.0,0.00710372]
[1742119597946,0.57730833,84077.0,84076.0,0.00810372]
[1742119598290,0.57730833,84077.0,84076.0,0.00710372]
[1742119598491,0.57730833,84077.0,84076.0,0.00010372]
[1742119598931,0.71278833,84077.0,84076.0,0.00010372]
[1742119600131,0.73143355,84077.0,84076.0,0.00010372]
[1742119601278,0.71278833,84077.0,84076.0,0.00010372]
[1742119601431,0.71278833,84077.0,84076.0,0.00044252]
[1742119605605,0.73143373,84077.0,84076.0,0.00044252]
[1742119606917,0.71278833,84077.0,84076.0,0.00044252]
[1742119611658,0.57730833,84077.0,84076.0,0.00044252]
[1742119611906,0.42521673,84077.0,84076.0,0.00044252]
[1742119612136,0.43710973,84077.0,84076.0,0.00044252]
[1742119613101,0.43727913,84077.0,84076.0,0.00044252]
[1742119613412,0.67515613,84077.0,84076.0,0.00044252]
[1742119615526,0.69379971,84077.0,84076.0,0.00044252]
[1742119617290,0.02730385,84077.0,84076.0,0.00044252]
[1742119617706,0.27808272,84077.0,84076.0,0.00044252]
[1742119617907,0.27707385,84077.0,84076.0,0.00044252]
[1742119618597,0.03919685,84077.0,84076.0,0.00044252]
[1742119619025,0.02730385,84077.0,84076.0,0.00044252]
[1742119622283,0.00866027,84077.0,84076.0,0.00044252]
[1742119624310,0.00966914,84077.0,84076.0,0.00044252]
[1742119624514,0.02156214,84077.0,84076.0,0.00044252]
[1742119626251,0.03919626,84077.0,84076.0,0.00044252]
[1742119626632,0.02055327,84077.0,84076.0,0.00044252]
[1742119627237,0.00866027,84077.0,84076.0,0.00044252]
[1742119630642,0.24754614,84077.0,84076.0,0.00044252]
[1742119630839,0.24653727,84077.0,84076.0,0.00044252]
[1742119631605,0.25843027,84077.0,84076.0,0.00044252]
[1742119632352,0.39143027,84077.0,84076.0,0.00044252]
[1742119635690,0.41007476,84077.0,84076.0,0.00044252]
[1742119637603,0.41000776,84077.0,84076.0,0.00044252]
[1742119638186,0.82673362,84077.0,84076.0,0.00044252]
[1742119639264,0.80808913,84077.0,84076.0,0.00044252]
[1742119642684,0.82673419,84077.0,84076.0,0.00044252]
[1742119643690,0.80808913,84077.0,84076.0,0.00044252]
[1742119648019,0.82673407,84077.0,84076.0,0.00044252]
[1742119652324,0.80808913,84077.0,84076.0,0.00044252]
[1742119654326,0.94352913,84077.0,84076.0,0.00044252]
[1742119655667,0.96217373,84077.0,84076.0,0.00044252]
[1742119656814,0.94352913,84077.0,84076.0,0.00044252]
[1742119664482,0.96217364,84077.0,84076.0,0.00044252]
[1742119664682,0.82673364,84077.0,84076.0,0.00044252]
[1742119664906,0.96217364,84077.0,84076.0,0.00044252]
[1742119668006,1.26217364,84077.0,84076.0,0.00044252]
[1742119668178,1.24352913,84077.0,84076.0,5.2e-07]
[1742119669351,1.24552913,84077.0,84076.0,5.2e-07]
[1742119671671,1.25052913,84077.0,84076.0,5.2e-07]
[1742119671873,0.674903,84066.0,84065.0,3e-07]
[1742119672081,0.674903,84066.0,84065.0,5.6e-07]
[1742119672276,0.68326681,84066.0,84065.0,5.6e-07]
[1742119673585,0.68826681,84066.0,84065.0,5.6e-07]
[1742119673750,0.69226681,84066.0,84065.0,5.6e-07]
[1742119674344,0.74526681,84066.0,84065.0,5.6e-07]
[1742119674550,0.01236381,84066.0,84065.0,5.6e-07]
[1742119674950,0.003,84066.0,84065.0,0.25245241]
[1742119675689,0.01864547,84066.0,84065.0,0.25245241]
[1742119676042,0.02364547,84066.0,84065.0,0.25245241]
[1742119676439,0.01864547,84066.0,84065.0,0.25245241]
[1742119677791,0.01864547,84066.0,84065.0,0.25345241]
[1742119680923,0.01864547,84066.0,84065.0,0.25379121]
[1742119681135,0.011894,84075.0,84065.0,0.25379121]
[1742119681136,0.0001694,84077.0,84076.0,0.23788]
[1742119681339,0.0001694,84077.0,84076.0,0.25242085]
[1742119682324,0.0021694,84077.0,84076.0,0.25242085]
[1742119682534,0.00417827,84077.0,84076.0,0.25242085]
[1742119682752,0.00217827,84077.0,84076.0,0.25242085]
[1742119682887,0.00117827,84077.0,84076.0,0.25242085]
[1742119683494,0.0001694,84077.0,84076.0,0.25242085]
[1742119684533,0.0188138,84077.0,84076.0,0.25242085]
[1742119684747,0.0188138,84077.0,84076.0,0.25442085]
[1742119688039,0.0188138,84077.0,84076.0,0.01654085]
[1742119688404,0.02986825,84077.0,84076.0,0.01654085]
[1742119688806,0.04176125,84077.0,84076.0,0.002]